bitfinex/quotes_ETHUSD_20250216
["timestamp","ask_amount","ask_price","bid_price","bid_amount"]
[1739692889799,3.71037,2695.2,2694.7,1.3543]
[1739692890009,3.71011,2695.4,2694.9,0.55]
[1739692890210,5.28,2695.7,2695.2,3.7102]
[1739692890429,3.70954,2695.8,2695.3,4.26013]
[1739692890597,3.70941,2695.9,2695.3,0.55]
[1739692890804,3.70963,2695.7,2695.3,0.55]
[1739692891187,0.7906,2696.0,2695.5,0.55]
[1739692891488,5.28,2696.2,2695.6,0.58709602]
[1739692891730,5.28,2696.2,2695.8,0.55]
[1739692892029,4.43576094,2696.3,2695.8,0.55]
[1739692892227,0.72696094,2696.3,2695.8,0.55]
[1739692892423,3.70868,2696.4,2695.8,0.55]
[1739692892614,7.41744,2696.4,2695.8,0.55]
[1739692892860,3.70868,2696.4,2695.8,0.55]
[1739692893017,3.70868,2696.4,2695.8,4.25944]
[1739692893630,3.70868,2696.4,2696.0,0.55]
[1739692894090,0.7906,2696.5,2696.0,0.55]
[1739692894290,4.49912,2696.5,2696.0,0.55]
[1739692894532,3.7084,2696.6,2696.0,5.06338]
[1739692895232,4.49877,2696.8,2696.2,0.55]
[1739692895427,3.70845,2696.6,2696.2,0.55]
[1739692896042,3.70825,2696.7,2696.2,0.55]
[1739692896394,3.70787,2697.0,2696.3,3.7087]
[1739692896594,3.70787,2697.0,2696.6,0.55]
[1739692896930,3.70796,2696.9,2696.6,0.55]
[1739692897495,3.70813,2696.8,2696.6,0.55]
[1739692897896,3.70813,2696.8,2696.6,1.3114]
[1739692901711,3.8055,2697.3,2696.6,1.3114]
[1739692901912,3.70775,2697.1,2696.6,1.3114]
[1739692902401,3.7079,2697.0,2696.6,1.3114]
[1739692904508,3.70775,2697.1,2696.6,1.3114]
[1739692904938,0.8055,2697.3,2696.6,1.3114]
[1739692905140,3.70823,2696.7,2696.6,1.3114]
[1739692905441,3.70823,2696.7,2696.3,0.55]
[1739692905629,7.41632,2696.8,2696.3,1.42292]
[1739692906040,3.7081,2696.8,2696.3,5.13167]
[1739692906633,3.7081,2696.8,2696.3,8.84036]
[1739692906841,3.7081,2696.8,2696.3,5.13161]
[1739692907011,3.70791,2697.0,2696.5,0.55]
[1739692907206,3.70812,2696.8,2696.3,4.58161]
[1739692907408,3.70812,2696.8,2696.5,0.55]
[1739692909345,3.70804,2696.9,2696.5,0.55]
[1739692909538,0.8055,2697.3,2696.7,0.55]
[1739692909718,3.70775,2697.1,2696.7,0.55]
[1739692911545,3.70785,2697.0,2696.7,0.55]
[1739692911759,3.70797,2696.9,2696.7,0.55]
[1739692911919,3.70809,2696.8,2696.7,0.55]
[1739692912435,3.70797,2696.9,2696.7,0.55]
[1739692912948,3.70783,2697.0,2696.7,0.55]
[1739692913450,3.70772,2697.1,2696.7,1.057979]
[1739692913642,3.70772,2697.1,2696.7,0.55]
[1739692914343,3.70805,2696.9,2696.7,0.55]
[1739692914530,7.41609,2696.9,2696.7,0.55]
[1739692914725,3.70804,2696.9,2696.7,0.55]
[1739692914935,3.70809,2696.8,2696.6,0.8213]
[1739692915119,3.70823,2696.7,2696.4,0.55]
[1739692915455,3.70823,2696.7,2696.4,2.262944]
[1739692915664,3.70811,2696.8,2696.4,2.262944]
[1739692915955,3.70826,2696.7,2696.4,2.262944]
[1739692916333,3.70792,2697.0,2696.4,2.262944]
[1739692916644,3.70816,2696.8,2696.4,2.262944]
[1739692916825,3.70808,2696.9,2696.4,5.971524]
[1739692917024,3.7082,2696.8,2696.6,0.55]
[1739692917877,3.70786,2697.0,2696.6,0.55]
[1739692918055,3.70786,2697.0,2696.7,0.7918]
[1739692918466,3.70786,2697.0,2696.8,0.55]
[1739692918669,3.70786,2697.0,2696.5,0.6763324]
[1739692918670,3.70802,2696.9,2696.5,0.6763324]
[1739692919022,3.70802,2696.9,2696.6,0.55]
[1739692919233,3.70802,2696.9,2696.6,1.12266824]
[1739692919475,3.70783,2697.0,2696.6,1.12266824]
[1739692919767,4.51292,2697.3,2696.6,1.12266824]
[1739692919971,3.70826,2696.7,2696.4,0.7918]
[1739692920274,3.7081,2696.8,2696.5,0.55]
[1739692920492,3.70816,2696.8,2696.5,0.55]
[1739692921448,3.70825,2696.7,2696.5,0.55]
[1739692921642,0.8055,2697.3,2696.5,1.055049]
[1739692921849,3.70781,2697.1,2696.7,0.55]
[1739692922169,3.70781,2697.1,2696.6,0.55]
[1739692922330,3.70764,2697.2,2696.7,4.49992]
[1739692922536,0.8055,2697.3,2696.7,4.49992]
[1739692922760,3.70754,2697.2,2696.8,0.55]
[1739692922932,3.70769,2697.1,2696.8,0.55]
[1739692923468,3.70754,2697.2,2696.8,0.55]
[1739692923688,3.70775,2697.1,2696.8,0.55]
[1739692923842,3.70754,2697.2,2696.8,0.55]
[1739692924175,3.70782,2697.0,2696.8,0.55]
[1739692924677,7.41576,2697.0,2696.8,0.55]
[1739692924858,0.8055,2697.3,2696.4,0.7918]
[1739692925065,3.70809,2696.8,2696.4,2.078848]
[1739692925237,3.70809,2696.8,2696.5,0.55]
[1739692926778,3.70824,2696.7,2696.5,0.55]
[1739692927588,3.70796,2696.9,2696.5,0.55]
[1739692927795,3.70836,2696.7,2696.4,0.7918]
[1739692928087,3.70844,2696.6,2696.2,5.37]
[1739692928391,3.70844,2696.6,2696.3,0.55]
[1739692929968,3.70859,2696.5,2696.3,0.55]
[1739692930660,3.70844,2696.6,2696.3,0.55]
[1739692932172,3.70823,2696.7,2696.3,0.55]
[1739692932559,3.70818,2696.8,2696.3,4.25872]
[1739692932955,7.41638,2696.8,2696.3,4.25872]
[1739692933459,3.70818,2696.8,2696.3,4.25872]
[1739692934524,4.50006,2696.9,2696.3,4.25872]
[1739692934681,0.7921,2696.9,2696.3,4.25872]
[1739692935018,3.70812,2696.8,2696.3,4.25871]
[1739692935176,0.7921,2697.2,2696.6,0.8213]
[1739692935380,0.7921,2697.2,2696.4,3.70862]
[1739692935381,3.7081,2696.8,2696.4,3.70862]
[1739692935695,4.49972,2697.2,2696.4,1.123873]
[1739692935899,3.70768,2697.1,2696.6,3.70826]
[1739692936309,0.7921,2697.2,2696.8,1.3713]
[1739692936511,4.49971,2697.2,2696.8,1.3713]
[1739692937084,0.7921,2697.2,2696.8,5.07932]
[1739692937280,4.49972,2697.2,2696.8,1.3713]
[1739692937704,8.20739,2697.2,2696.8,1.3713]
[1739692937978,0.7921,2697.2,2696.8,5.07928]
[1739692938581,0.7921,2697.2,2696.8,1.3713]
[1739692938808,0.7921,2697.2,2696.8,1.879248]
[1739692939183,5.28,2697.3,2696.9,3.70789]
[1739692939379,8.98742,2697.3,2696.9,3.70789]
[1739692939579,3.70742,2697.3,2696.9,3.70789]
[1739692940113,8.20684,2697.4,2696.9,3.70789]
[1739692940616,6.0411,2697.6,2697.0,0.55]
[1739692940918,6.0411,2697.6,2697.0,1.057917]
[1739692941218,3.70725,2697.5,2697.0,1.057917]
[1739692941923,3.70731,2697.4,2697.0,1.057917]
[1739692942292,3.70725,2697.5,2697.0,1.057917]
[1739692942619,3.70724,2697.5,2697.0,1.057917]
[1739692942811,7.41448,2697.5,2697.0,1.057917]
[1739692943119,3.70724,2697.5,2697.0,1.057917]
[1739692943322,7.41449,2697.5,2697.0,4.765707]
[1739692943729,0.7611,2697.6,2697.2,0.55]
[1739692943911,3.7072,2697.5,2697.2,0.55]
[1739692945305,4.46816,2697.6,2697.2,0.55]
[1739692945508,3.70696,2697.7,2697.2,1.3713]
[1739692946000,7.41392,2697.7,2697.2,1.3713]
[1739692946202,7.41392,2697.7,2697.3,0.92630307]
[1739692946529,3.707,2697.6,2697.3,0.92630307]
[1739692946896,3.70696,2697.7,2697.3,0.92630307]
[1739692948133,0.7611,2697.8,2697.3,4.63369307]
[1739692948336,3.70669,2697.9,2697.4,3.70726]
[1739692948496,3.70673,2697.8,2697.4,0.97123331]
[1739692948694,3.70637,2698.1,2697.6,4.52823]
[1739692948933,7.41276,2698.1,2697.6,4.52823]
[1739692949096,3.70637,2698.1,2697.6,0.8213]
[1739692949306,3.70655,2698.0,2697.6,0.8213]
[1739692949506,3.7066,2697.9,2697.6,0.8213]
[1739692952230,3.70645,2698.0,2697.6,0.8213]
[1739692954012,3.70638,2698.1,2697.6,0.8213]
[1739692954233,3.70645,2698.0,2697.6,0.8213]
[1739692954424,3.70645,2698.0,2697.6,1.329155]
[1739692956542,3.70654,2698.0,2697.6,1.329155]
[1739692958047,3.70653,2698.0,2697.6,1.329155]
[1739692958210,3.70661,2697.9,2697.6,1.329155]
[1739692958847,3.70632,2698.1,2697.6,1.329155]
[1739692959016,7.41275,2698.1,2697.6,1.329155]
[1739692959216,3.70646,2698.0,2697.6,1.329155]
[1739692959434,3.0,2698.2,2697.6,1.329155]
[1739692959646,3.70638,2698.1,2697.6,5.036055]
[1739692960046,3.70638,2698.1,2697.6,1.329155]
[1739692960213,7.41278,2698.1,2697.6,5.036135]
[1739692960412,3.70638,2698.1,2697.6,5.036135]
[1739692960852,7.41277,2698.1,2697.6,5.036135]
[1739692961368,3.70638,2698.1,2697.6,5.036065]
[1739692961513,3.70614,2698.3,2697.7,4.2653365]
[1739692961715,3.70631,2698.1,2697.7,0.5586065]
[1739692963046,3.70621,2698.2,2697.8,0.55]
[1739692963264,3.70621,2698.2,2697.9,0.7995]
[1739692963472,3.70614,2698.3,2697.9,0.7995]
[1739692963633,3.70626,2698.2,2697.9,0.7995]
[1739692963943,3.70614,2698.3,2697.9,0.7995]
[1739692964347,7.41225,2698.3,2697.9,0.7995]
[1739692964712,7.41228,2698.3,2697.9,0.7995]
[1739692964950,3.70611,2698.3,2698.0,0.55]
[1739692966230,3.7109,2698.4,2698.0,0.55]
[1739692966451,0.005,2698.4,2698.0,0.55]
[1739692966656,3.70604,2698.3,2698.0,0.55]
[1739692966818,3.70604,2698.3,2698.1,0.7995]
[1739692967019,3.70617,2698.2,2698.1,0.99059747]
[1739692969321,3.70617,2698.2,2698.1,0.7995]
[1739692970767,3.70658,2697.9,2697.8,0.7803]
[1739692970928,3.70658,2697.9,2697.4,4.48755]
[1739692971123,3.70651,2698.0,2697.5,4.25705]
[1739692971325,3.70638,2698.1,2697.6,4.48729]
[1739692971528,3.70638,2698.1,2697.7,0.503729]
[1739692971732,3.70652,2698.0,2697.6,0.7803]
[1739692974159,3.70635,2698.1,2697.6,4.48723]
[1739692974365,3.70633,2698.1,2697.6,8.19412]
[1739692974668,3.70633,2698.1,2697.6,8.1941]
[1739692974853,3.70633,2698.1,2697.6,4.48719]
[1739692975053,3.70647,2698.0,2697.8,0.55]
[1739692976159,3.70619,2698.2,2697.8,0.55]
[1739692976160,3.70617,2698.2,2697.8,0.55]
[1739692976554,3.70632,2698.1,2697.8,0.55]
[1739692976755,3.70617,2698.2,2697.8,0.55]
[1739692976956,3.70646,2698.0,2697.8,0.55]
[1739692977357,3.70646,2698.0,2697.8,1.1040999]
[1739692978658,7.41248,2698.2,2697.8,1.1040999]
[1739692978854,3.70632,2698.1,2697.8,1.1040999]
[1739692979664,3.65632,2698.1,2697.8,1.1040999]
[1739692980796,3.70647,2698.0,2697.8,1.1040999]
[1739692981071,3.70647,2698.0,2697.8,0.55]
[1739692982175,3.70666,2697.9,2697.6,0.7803]
[1739692984374,3.7064,2698.1,2697.6,4.48729]
[1739692985563,7.41281,2698.1,2697.6,4.48729]
[1739692985874,3.7064,2698.1,2697.6,4.48721]
[1739692986081,3.7064,2698.1,2697.7,0.448721]
[1739692986263,7.41283,2698.1,2697.7,0.448721]
[1739692986659,3.70644,2698.0,2697.7,0.448721]
[1739692986875,0.8055,2698.3,2697.7,0.448721]
[1739692987076,3.70626,2698.2,2697.7,0.55]
[1739692987565,3.70645,2698.0,2697.7,0.55]
[1739692988800,3.70659,2697.9,2697.7,0.55]
[1739692989987,3.70649,2698.0,2697.7,0.55]
[1739692994790,3.70619,2698.2,2697.7,4.25675]
[1739692995103,3.70632,2698.1,2697.8,0.503705]
[1739692995480,3.70619,2698.2,2697.9,0.55]
[1739692995682,3.70619,2698.2,2698.0,0.7728]
[1739692995882,3.71098,2698.4,2698.0,0.7728]
[1739692996207,7.41695,2698.4,2698.0,0.7728]
[1739692996403,7.41695,2698.4,2698.0,1.3261055]
[1739692996583,3.71097,2698.4,2698.0,1.3261055]
[1739692996779,3.70604,2698.3,2698.0,1.3261055]
[1739692996970,0.005,2698.4,2698.1,0.55]
[1739692997174,3.71098,2698.4,2698.1,0.55]
[1739692997377,3.71098,2698.4,2698.2,0.18761055]
[1739692998014,0.005,2698.4,2698.2,0.18761055]
[1739692998187,3.71097,2698.4,2698.2,0.18761055]
[1739692998389,0.005,2698.4,2698.2,0.18761055]
[1739692998706,3.71091,2698.4,2698.2,0.18761055]
[1739692998911,0.005,2698.4,2698.2,0.18761055]
[1739692999110,3.71092,2698.4,2698.2,0.18761055]
[1739693000095,0.005,2698.4,2698.2,0.18761055]
[1739693001405,3.71091,2698.4,2698.2,0.18761055]
[1739693001591,0.005,2698.4,2698.2,0.18761055]
[1739693001985,3.7109,2698.4,2698.2,0.18761055]
[1739693002181,0.005,2698.4,2698.2,0.18761055]
[1739693002773,0.005,2698.4,2698.3,0.55]
[1739693003875,0.005,2698.4,2698.3,0.99439106]
[1739693009075,0.005,2698.4,2698.3,1.80979106]
[1739693009412,0.005,2698.4,2698.3,1.3654]
[1739693011295,3.71089,2698.4,2698.3,0.55]
[1739693012211,0.005,2698.4,2698.3,0.55]
[1739693018090,0.005,2698.4,2698.3,1.3128]
[1739693023193,0.005,2698.4,2698.3,0.55]
[1739693023397,0.005,2698.4,2698.3,1.07067106]
[1739693026546,0.005,2698.4,2698.3,1.07067106]
[1739693029047,0.35062912,2698.4,2698.3,1.07067106]
[1739693033647,0.005,2698.4,2698.3,1.07067106]
[1739693038628,0.005,2698.4,2698.3,4.77670106]
[1739693042465,0.005,2698.4,2698.3,1.07067106]
[1739693043371,0.005,2698.4,2698.3,4.77670106]
[1739693043834,0.005,2698.4,2698.3,1.07067106]
[1739693049071,0.005,2698.4,2698.3,4.77670106]
[1739693050076,0.005,2698.4,2698.3,1.07067106]
[1739693050365,0.005,2698.4,2698.3,4.77670106]
[1739693050831,0.005,2698.4,2698.3,1.07067106]
[1739693059780,0.005,2698.4,2698.3,4.77670106]
[1739693063782,3.66128056,2698.8,2698.3,4.77670106]
[1739693064247,7.36672056,2698.8,2698.3,4.77670106]
[1739693064448,3.66128056,2698.8,2698.4,3.70586]
[1739693064672,4.53289,2698.9,2698.4,4.20227416]
[1739693064883,3.70536,2698.8,2698.4,4.20227416]
[1739693065182,3.70535,2698.8,2698.4,4.20227416]
[1739693065591,4.53283,2698.9,2698.4,4.20222416]
[1739693067785,0.8276,2698.9,2698.5,3.70575]
[1739693067982,0.8276,2698.9,2698.5,4.18096642]
[1739693068389,4.53284,2698.9,2698.5,4.18096642]
[1739693068566,0.8276,2698.9,2698.5,4.18096642]
[1739693069364,4.53289,2698.9,2698.5,0.47521642]
[1739693070966,0.8276,2698.9,2698.5,0.47521642]
[1739693071170,0.8276,2698.9,2698.6,3.70555]
[1739693073192,0.8276,2698.9,2698.5,0.55]
[1739693073558,4.53289,2698.9,2698.5,0.55]
[1739693075494,0.8276,2698.9,2698.5,0.55]
[1739693076511,4.53281,2698.9,2698.3,3.70603]
[1739693076812,3.70545,2698.8,2698.3,4.70981406]
[1739693076980,3.70548,2698.7,2698.3,1.00378406]
[1739693077179,0.8271,2698.6,2698.3,1.00378406]
[1739693077387,4.53273,2698.6,2698.3,1.00378406]
[1739693078068,4.53327,2698.2,2698.1,5.37]
[1739693079098,4.48130562,2698.2,2698.1,5.37]
[1739693079308,0.77513562,2698.2,2698.1,5.37]
[1739693079667,3.7058,2698.5,2698.1,5.37]
[1739693079872,3.7058,2698.5,2698.1,6.735716]
[1739693081081,3.70592,2698.4,2698.1,6.735716]
[1739693081277,3.70558,2698.7,2698.1,6.735716]
[1739693081483,3.7057,2698.6,2698.1,6.735716]
[1739693081682,3.70581,2698.5,2698.1,6.735716]
[1739693081906,3.70601,2698.4,2698.1,6.735716]
[1739693082107,0.8271,2698.3,2698.1,1.365716]
[1739693082309,0.8271,2698.3,2698.1,0.55]
[1739693082800,3.70617,2698.2,2698.0,0.1]
[1739693082988,3.70631,2698.1,2698.0,0.1]
[1739693083371,3.70617,2698.2,2698.0,0.1]
[1739693083808,7.41242,2698.2,2698.0,0.1]
[1739693084004,3.70617,2698.2,2698.0,0.1]
[1739693084167,3.70631,2698.1,2698.0,0.1]
[1739693087797,3.70617,2698.2,2698.0,0.1]
[1739693088004,7.41242,2698.2,2698.0,0.1]
[1739693088210,3.70617,2698.2,2698.0,0.1]
[1739693088410,7.41242,2698.2,2698.0,0.1]
[1739693088709,7.41247,2698.2,2698.0,0.1]
[1739693088885,3.70631,2698.1,2698.0,0.1]
[1739693089287,7.41244,2698.2,2698.0,0.1]
[1739693089808,3.70631,2698.1,2698.0,0.1]
[1739693090710,7.41243,2698.2,2698.0,0.1]
[1739693091328,3.70617,2698.2,2698.0,0.1]
[1739693091612,3.70631,2698.1,2698.0,0.1]
[1739693091909,4.53315,2698.3,2698.0,0.1]
[1739693092412,3.70624,2698.2,2698.0,0.1]
[1739693092613,3.70627,2698.2,2698.0,0.1]
[1739693092913,3.70631,2698.1,2698.0,0.1]
[1739693093278,4.53314,2698.3,2698.0,0.1]
[1739693093479,3.70618,2698.2,2698.0,0.1]
[1739693093709,4.53314,2698.3,2698.0,0.1]
[1739693093921,3.70601,2698.4,2698.0,0.1]
[1739693094094,3.70601,2698.4,2698.1,1.007352]
[1739693094990,3.70617,2698.2,2698.1,0.457352]
[1739693095183,4.47851,2698.1,2698.0,0.1]
[1739693097014,3.70606,2698.3,2698.0,0.1]
[1739693097582,3.70618,2698.2,2698.0,0.1]
[1739693097783,4.47822,2698.4,2698.0,0.1]
[1739693097990,4.47822,2698.4,2698.0,0.557358]
[1739693098196,8.18424,2698.4,2698.0,0.1]
[1739693099725,0.7722,2698.4,2698.0,0.1]
[1739693100027,4.4781,2698.4,2698.0,3.80644]
[1739693100332,0.7722,2698.9,2698.2,0.55]
[1739693100551,3.70606,2698.3,2698.0,0.1]
[1739693100898,3.70606,2698.3,2698.0,0.857364]
[1739693101300,7.41221,2698.3,2698.0,0.857364]
[1739693101540,3.70619,2698.2,2698.0,0.857364]
[1739693101702,3.70619,2698.2,2698.0,0.1]
[1739693102623,3.70606,2698.3,2698.0,0.1]
[1739693102940,3.70584,2698.5,2698.1,0.767]
[1739693103153,3.70607,2698.3,2698.1,0.767]
[1739693103321,3.70584,2698.5,2698.0,3.80643]
[1739693103526,3.7059,2698.4,2698.0,3.80643]
[1739693103740,3.70604,2698.3,2698.0,0.98671124]
[1739693105459,0.7573,2698.2,2698.0,0.1]
[1739693107918,3.70631,2698.1,2698.0,0.1]
[1739693109624,3.70599,2698.4,2698.0,0.8781]
[1739693109803,3.70604,2698.3,2698.0,0.8781]
[1739693110007,3.70599,2698.4,2698.0,0.8781]
[1739693110208,7.412,2698.4,2698.0,0.8781]
[1739693110434,3.70599,2698.4,2698.0,0.8781]
[1739693110619,3.70599,2698.4,2698.0,1.762229]
[1739693111139,3.7061,2698.3,2698.0,1.762229]
[1739693111341,3.70599,2698.4,2698.0,1.762229]
[1739693111713,3.70599,2698.4,2698.1,0.55]
[1739693111913,3.70579,2698.5,2698.0,1.762229]
[1739693112113,3.70579,2698.5,2698.0,0.8781]
[1739693112641,3.70563,2698.6,2698.2,3.70616]
[1739693112844,3.70563,2698.6,2698.1,0.55]
[1739693112845,4.51631,2698.9,2698.4,0.8279]
[1739693113046,3.70531,2698.9,2698.4,4.5337]
[1739693113209,3.70531,2698.9,2698.4,0.8279]
[1739693113410,7.41061,2698.9,2698.4,0.8279]
[1739693113638,3.7053,2698.9,2698.4,4.5337]
[1739693113947,3.7053,2698.9,2698.5,0.45337]
[1739693114514,4.51601,2699.1,2698.5,4.15904]
[1739693114714,3.70516,2699.0,2698.5,0.45337]
[1739693114930,3.70523,2698.9,2698.5,0.45337]
[1739693116041,3.70535,2698.8,2698.5,0.45337]
[1739693116242,3.7055,2698.7,2698.4,0.8279]
[1739693116447,3.7055,2698.7,2698.5,0.55]
[1739693117049,3.70523,2698.9,2698.5,0.55]
[1739693117224,7.41057,2698.9,2698.5,0.55]
[1739693117425,3.70543,2698.8,2698.5,0.55]
[1739693119444,3.70549,2698.7,2698.5,0.55]
[1739693119651,3.70549,2698.7,2698.5,0.508392]
[1739693120842,7.41056,2698.9,2698.5,0.508392]
[1739693121016,3.70523,2698.9,2698.5,0.508392]
[1739693121217,3.70544,2698.8,2698.5,0.508392]
[1739693121429,3.70553,2698.7,2698.5,0.508392]
[1739693121617,3.70553,2698.7,2698.4,0.8279]
[1739693124432,3.70563,2698.6,2698.4,0.8279]
[1739693124817,3.70563,2698.6,2698.2,5.03495]
[1739693125353,3.7055,2698.7,2698.2,5.03495]
[1739693126554,3.70571,2698.6,2698.2,1.3288]
[1739693126728,3.70571,2698.6,2698.3,1.040499]
[1739693127048,4.50759,2698.8,2698.3,4.746459]
[1739693127356,3.70539,2698.8,2698.4,3.70588]
[1739693127935,3.70539,2698.8,2698.3,1.040499]
[1739693128133,3.70525,2698.9,2698.4,3.70589]
[1739693128341,3.70541,2698.8,2698.5,0.4746389]
[1739693130025,0.8022,2699.0,2698.5,4.1803189]
[1739693130263,0.8022,2699.0,2698.5,1.2534389]
[1739693130555,3.70527,2698.9,2698.5,1.2534389]
[1739693130853,3.70527,2698.9,2698.6,0.49592389]
[1739693131427,3.70508,2699.0,2698.6,0.49592389]
[1739693131842,3.70527,2698.9,2698.6,0.49592389]
[1739693132642,3.70521,2698.9,2698.6,0.49592389]
[1739693132846,3.70535,2698.8,2698.7,0.0822336]
[1739693133044,4.50755,2698.8,2698.7,0.0822336]
[1739693133482,3.70564,2698.6,2698.3,0.7788]
[1739693133647,3.70564,2698.6,2698.3,1.819301]
[1739693134380,4.50755,2698.8,2698.1,6.1488]
[1739693134381,3.70577,2698.5,2698.1,6.1488]
[1739693134588,0.8022,2698.4,2698.0,0.1]
[1739693135265,3.70605,2698.3,2698.0,0.1]
[1739693138059,4.50812,2698.4,2698.0,0.1]
[1739693139266,0.8022,2698.4,2698.0,0.1]
[1739693139572,3.70605,2698.3,2698.0,0.1]
[1739693139868,3.70605,2698.3,2698.0,0.613537]
[1739693142875,3.70631,2698.1,2698.0,0.1]
[1739693144473,3.70619,2698.2,2698.0,0.1]
[1739693144672,3.7061,2698.3,2698.0,0.1]
[1739693144972,4.5082,2698.4,2698.1,0.08217811]
[1739693145278,3.70605,2698.3,2698.1,0.08217811]
[1739693146174,3.70603,2698.3,2698.1,0.08217811]
[1739693146376,4.5081,2698.4,2698.1,0.08217811]
[1739693146572,4.5081,2698.4,2698.1,0.91057811]
[1739693146573,3.7059,2698.4,2698.1,0.91057811]
[1739693146876,3.70586,2698.5,2698.1,0.91057811]
[1739693147073,3.70605,2698.3,2698.1,0.91057811]
[1739693148075,3.70586,2698.5,2698.1,1.38228592]
[1739693148273,8.98555,2698.7,2698.3,0.8284]
[1739693148473,5.28,2698.7,2698.4,0.63208469]
[1739693148679,4.51756,2698.5,2698.4,0.08208469]
[1739693149080,3.7059,2698.4,2698.0,0.1]
[1739693149383,7.4119,2698.4,2698.1,0.08239397]
[1739693149781,3.7059,2698.4,2698.1,0.08239397]
[1739693150079,7.4119,2698.4,2698.1,0.08239397]
[1739693150282,3.7059,2698.4,2698.1,0.08239397]
[1739693150447,3.70617,2698.2,2698.1,0.08239397]
[1739693150777,7.41191,2698.4,2698.1,0.08239397]
[1739693151777,3.70609,2698.3,2698.1,0.08239397]
[1739693153385,4.51757,2698.5,2698.1,0.08239397]
[1739693153844,8.22345,2698.5,2698.1,0.08239397]
[1739693154677,4.51757,2698.5,2698.1,0.08239397]
[1739693154853,3.7059,2698.4,2698.1,0.08239397]
[1739693155352,3.70605,2698.3,2698.1,0.08239397]
[1739693159177,3.70617,2698.2,2698.1,0.08239397]
[1739693159683,4.46477,2698.2,2698.1,0.08239397]
[1739693161245,3.70631,2698.1,2698.0,0.1]
[1739693162459,4.46491,2698.1,2698.0,0.1]
[1739693163078,3.70742,2697.3,2696.7,0.7969]
[1739693163263,3.7077,2697.1,2696.7,0.7969]
[1739693163663,3.7077,2697.1,2696.8,0.55]
[1739693165984,3.7077,2697.1,2696.7,0.55]
[1739693166148,0.7614,2697.2,2696.7,5.673253]
[1739693166353,3.70722,2697.5,2696.9,3.70796]
[1739693166354,3.70736,2697.4,2696.9,3.70796]
[1739693166570,4.46862,2697.5,2696.9,3.70796]
[1739693166774,3.70737,2697.4,2696.9,3.70796]
[1739693167470,0.7614,2697.5,2696.9,3.70796]
[1739693167670,4.46854,2697.5,2696.9,4.3566413]
[1739693167877,3.70731,2697.4,2696.9,4.3566413]
[1739693168785,3.70711,2697.6,2697.1,3.70763]
[1739693169157,3.70711,2697.6,2697.2,0.8138]
[1739693169352,5.28,2698.0,2697.3,0.55]
[1739693169588,4.4679,2698.0,2697.3,0.55]
[1739693169779,4.4679,2698.0,2697.4,3.70719]
[1739693169974,0.7614,2698.0,2697.6,3.70686]
[1739693170150,0.7614,2698.0,2697.3,0.55]
[1739693170151,4.46787,2698.0,2697.5,0.55]
[1739693170354,0.7614,2698.0,2697.5,0.55]
[1739693170556,0.7614,2698.0,2697.6,0.8138]
[1739693170774,3.70638,2698.1,2697.6,4.52078]
[1739693170969,3.70646,2698.0,2697.6,4.52078]
[1739693171292,0.7614,2698.2,2697.6,0.8138]
[1739693171293,3.70668,2697.9,2697.6,0.8138]
[1739693171458,7.4134,2697.9,2697.5,0.55]
[1739693171885,3.70673,2697.8,2697.5,0.55]
[1739693172093,0.7614,2697.8,2697.5,0.55]
[1739693172296,3.70696,2697.7,2697.5,0.55]
[1739693172454,3.70696,2697.7,2697.2,4.973383]
[1739693172455,3.707,2697.6,2697.2,4.973383]
[1739693172785,3.707,2697.6,2697.3,0.55]
[1739693172989,3.70718,2697.5,2697.0,9.89152]
[1739693173893,0.7614,2697.8,2697.3,0.55]
[1739693174212,3.70666,2697.9,2697.4,4.52103]
[1739693174709,3.70666,2697.9,2697.5,0.07516858]
[1739693174897,4.46785,2698.0,2697.5,0.07516858]
[1739693175096,4.46785,2698.0,2697.5,0.62516858]
[1739693175294,4.46785,2698.0,2697.6,3.70697]
[1739693175674,4.46785,2698.0,2697.7,0.0749322]
[1739693176013,0.7614,2698.0,2697.7,0.0749322]
[1739693176210,3.70603,2698.3,2697.8,0.8138]
[1739693176415,3.70603,2698.3,2697.9,0.07469584]
[1739693177408,0.7614,2698.4,2697.9,3.78126584]
[1739693177589,4.46738,2698.4,2697.9,3.78126584]
[1739693178396,3.70613,2698.3,2697.9,0.07469584]
[1739693178809,3.70631,2698.1,2697.8,0.8138]
[1739693179011,3.70631,2698.1,2697.9,0.07464749]
[1739693180416,7.41272,2698.1,2697.9,0.07464749]
[1739693180615,7.41272,2698.1,2697.6,4.48287]
[1739693180616,3.70631,2698.1,2697.7,0.55]
[1739693180812,3.70654,2698.0,2697.8,0.07222514]
[1739693181012,0.7708,2697.9,2697.3,4.48334]
[1739693181213,3.70686,2697.7,2697.4,0.07269792]
[1739693181712,3.70686,2697.7,2697.5,0.55]
[1739693181913,3.70708,2697.6,2697.4,0.07269792]
[1739693182094,3.70708,2697.6,2697.2,5.37]
[1739693182817,3.70699,2697.6,2697.3,0.55]
[1739693183408,3.70686,2697.7,2697.3,0.55]
[1739693183610,3.70711,2697.6,2697.3,0.55]
[1739693183909,3.70721,2697.5,2697.3,0.55]
[1739693184303,3.70737,2697.4,2697.2,5.37]